[Event "2nd Serbian League-Vojvodina 2023"]
[Site "Novi Sad"]
[Date "2023.11.04"]
[Round "4.15"]
[White "Szalai, Kornel"]
[Black "Mijatovic, Dusan"]
[Result "1-0"]
[ECO "A09"]
[WhiteElo "2383"]
[BlackElo "2139"]
[Annotator "ChessBase"]
[PlyCount "63"]
[EventDate "2023.10.22"]
[EventType "team-tourn"]
[EventCountry "SRB"]
[SourceTitle "playchess.com"]
[Source "ChessBase"]
[SourceQuality "1"]
[TimeControl "40/5400+30:1800+30"]

1. Nf3 {[%emt 0:00:11]} d5 {[%emt 0:00:11]} 2. c4 {[%emt 0:02:11]} d4 {[%emt 0:00:10]} 3. b4 {[%emt 0:00:43]} g5 {[%emt 0:00:15]} 4. Qa4+ {[%emt 0:07:47]} c6 {[%emt 0:00:41]} 5. Bb2 {[%emt 0:02:53]} Bg7 {[%emt 0:02:18]} 6. Qa5 {[%emt 0:11:56]} Qxa5 {[%emt 0:18:06]} 7. bxa5 {[%emt 0:00:03]} c5 {[%emt 0:06:40]} 8. Nxg5 {[%emt 0:05:17]} Nc6 {[%emt 0:02:00]} 9. d3 {[%emt 0:07:08]} Nxa5 {[%emt 0:03:07]} 10. g3 {[%emt 0:00:17]} Bd7 {[%emt 0:01:47]} 11. Nd2 {[%emt 0:57:34]} Bc6 {[%emt 1:00:45]} 12. Ngf3 {[%emt 0:00:00]} O-O-O {[%emt 0:00:00]} 13. Nb3 {[%emt 0:00:00]} Nxb3 {[%emt 0:00:00]} 14. axb3 {[%emt 0:00:00]} Kb8 {[%emt 0:00:00]} 15. Ba3 {[%emt 0:00:00]} b6 {[%emt 0:00:00]} 16. b4 {[%emt 0:00:00]} cxb4 {[%emt 0:00:00]} 17. Bxb4 {[%emt 0:00:00]} e5 {[%emt 0:00:00]} 18. Bg2 {[%emt 0:00:00]} Nh6 {[%emt 0:00:00]} 19. O-O {[%emt 0:04:00]} f6 {[%emt 0:00:00]} 20. Rfb1 {[%emt 0:00:30]} Kb7 {[%emt 0:04:30]} 21. Nd2 {[%emt 0:00:30]} Bxg2 {[%emt 0:00:00]} 22. Kxg2 {[%emt 0:00:00]} Bf8 {[%emt 0:01:00]} 23. Bxf8 {[%emt 0:00:00]} Rhxf8 {[%emt 0:00:00]} 24. c5 {[%emt 0:01:30]} Rde8 {[%emt 0:01:00]} 25. Nc4 {[%emt 0:00:30]} Re6 {[%emt 0:00:00]} 26. Rb2 {[%emt 0:00:00]} Rb8 {[%emt 0:00:00]} 27. Rba2 {[%emt 0:00:00]} Ra8 {[%emt 0:00:00]} 28. cxb6 {[%emt 0:00:00]} a6 {[%emt 0:00:00]} 29. Ra5 {[%emt 0:02:00]} Nf7 {[%emt 0:00:00]} 30. Rc5 {[%emt 0:00:30]} Re7 {[%emt 0:00:00]} 31. Rb1 {[%emt 0:00:30]} Kb8 {[%emt 0:03:30]} 32. Na5 {[%emt 0:00:00]} 1-0

[Event "2nd Serbian League-Vojvodina 2023"]
[Site "Novi Sad"]
[Date "2023.11.04"]
[Round "4.16"]
[White "Mijatovic, Dejan"]
[Black "Nadj Hedjesi, Balind"]
[Result "0-1"]
[ECO "D02"]
[WhiteElo "2185"]
[BlackElo "2227"]
[Annotator "ChessBase"]
[PlyCount "76"]
[EventDate "2023.10.22"]
[EventType "team-tourn"]
[EventCountry "SRB"]
[SourceTitle "playchess.com"]
[Source "ChessBase"]
[SourceQuality "1"]
[TimeControl "40/5400+30:1800+30"]

1. d4 {[%emt 0:00:30]} Nf6 {[%emt 0:00:40]} 2. Nf3 {[%emt 0:00:00]} e6 {[%emt 0:00:31]} 3. Bf4 {[%emt 0:00:28]} c5 {[%emt 0:01:29]} 4. e3 {[%emt 0:00:23]} b6 {[%emt 0:00:29]} 5. Nbd2 {[%emt 0:01:44]} Bb7 {[%emt 0:00:42]} 6. c3 {[%emt 0:06:47]} Be7 {[%emt 0:00:21]} 7. h3 {[%emt 0:00:14]} Nc6 {[%emt 0:00:40]} 8. Be2 {[%emt 0:00:46]} O-O {[%emt 0:00:32]} 9. O-O {[%emt 0:00:07]} d5 {[%emt 0:04:34]} 10. Bh2 {[%emt 0:03:02]} Qc8 {[%emt 0:01:54]} 11. Qb1 {[%emt 0:09:52]} Ba6 {[%emt 0:03:35]} 12. Bxa6 {[%emt 0:00:35]} Qxa6 {[%emt 0:00:09]} 13. Re1 {[%emt 0:07:28]} Rfd8 {[%emt 0:04:08]} 14. Ne5 {[%emt 0:00:24]} Nxe5 {[%emt 0:01:35]} 15. Bxe5 {[%emt 0:00:31]} Rac8 {[%emt 0:00:42]} 16. Bh2 {[%emt 0:05:32]} Rc6 {[%emt 0:04:47]} 17. a4 {[%emt 0:02:07]} Rdc8 {[%emt 0:06:33]} 18. Nf3 {[%emt 0:04:35]} Nd7 {[%emt 0:03:21]} 19. e4 {[%emt 0:01:51]} dxe4 {[%emt 0:12:47]} 20. Qxe4 {[%emt 0:00:33]} Nf6 {[%emt 0:06:09]} 21. Qe2 {[%emt 0:02:41]} Qxe2 {[%emt 0:02:34]} 22. Rxe2 {[%emt 0:00:07]} Rd8 {[%emt 0:04:30]} 23. Kf1 {[%emt 0:05:58]} h6 {[%emt 0:01:48]} 24. Ke1 {[%emt 0:00:27]} Rcc8 {[%emt 0:05:49]} 25. Bf4 {[%emt 0:10:12]} Nd5 {[%emt 0:00:46]} 26. Be3 {[%emt 0:01:54]} Bf6 {[%emt 0:02:45]} 27. a5 {[%emt 0:04:07]} b5 {[%emt 0:02:28]} 28. dxc5 {[%emt 0:14:36]} Nxc3 {[%emt 0:28:12]} 29. Rc2 {[%emt 0:01:05]} Nd5 {[%emt 0:00:00]} 30. Rd1 {[%emt 0:03:40]} a6 {[%emt 0:00:00]} 31. Nd4 {[%emt 0:03:55]} Nb4 {[%emt 0:00:00]} 32. Rc3 {[%emt 0:02:44]} Rd5 {[%emt 0:00:00]} 33. c6 {[%emt 0:04:45]} Bxd4 {[%emt 0:00:00]} 34. Rxd4 {[%emt 0:00:38]} Rxd4 {[%emt 0:00:00]} 35. Bxd4 {[%emt 0:00:09]} Rxc6 {[%emt 0:00:00]} 36. Rxc6 {[%emt 0:00:28]} Nxc6 {[%emt 0:00:00]} 37. Bc3 {[%emt 0:01:34]} e5 {[%emt 0:00:00]} 38. Ke2 {[%emt 0:00:10]} f6 {[%emt 0:00:00]} 0-1

[Event "2nd Serbian League-Vojvodina 2023"]
[Site "Novi Sad"]
[Date "2023.11.04"]
[Round "4.17"]
[White "Juhasz, Bence R"]
[Black "Rosic, Slavko S"]
[Result "1-0"]
[ECO "B12"]
[WhiteElo "2210"]
[BlackElo "2212"]
[Annotator "ChessBase"]
[PlyCount "147"]
[EventDate "2023.10.22"]
[EventType "team-tourn"]
[EventCountry "SRB"]
[SourceTitle "playchess.com"]
[Source "ChessBase"]
[SourceQuality "1"]
[TimeControl "40/5400+30:1800+30"]

1. e4 {[%emt 0:00:45]} c6 {[%emt 0:00:05]} 2. d4 {[%emt 0:00:12]} d5 {[%emt 0:00:12]} 3. e5 {[%emt 0:00:24]} h5 {[%emt 0:05:05]} 4. h3 {[%emt 0:02:59]} Bf5 {[%emt 0:00:11]} 5. Nd2 {[%emt 0:00:07]} e6 {[%emt 0:00:43]} 6. Nb3 {[%emt 0:00:11]} Nd7 {[%emt 0:02:02]} 7. Nf3 {[%emt 0:00:09]} Be7 {[%emt 0:01:01]} 8. Bd2 {[%emt 0:05:01]} Nh6 {[%emt 0:04:16]} 9. Qc1 {[%emt 0:05:26]} Qc7 {[%emt 0:05:37]} 10. Be2 {[%emt 0:09:15]} Be4 {[%emt 0:02:22]} 11. O-O {[%emt 0:01:51]} Bxf3 {[%emt 0:01:57]} 12. Bxf3 {[%emt 0:00:24]} Nf5 {[%emt 0:00:01]} 13. c4 {[%emt 0:04:08]} dxc4 {[%emt 0:03:26]} 14. Qxc4 {[%emt 0:00:28]} Nb6 {[%emt 0:00:02]} 15. Qe2 {[%emt 0:04:03]} g6 {[%emt 0:00:28]} 16. Rfd1 {[%emt 0:03:10]} Nd5 {[%emt 0:01:07]} 17. Rac1 {[%emt 0:01:34]} Qd8 {[%emt 0:04:00]} 18. Ba5 {[%emt 0:09:52]} Qd7 {[%emt 0:00:35]} 19. Be4 {[%emt 0:01:41]} Bg5 {[%emt 0:07:43]} 20. Rc2 {[%emt 0:01:01]} Qe7 {[%emt 0:00:14]} 21. a3 {[%emt 0:01:14]} b6 {[%emt 0:03:08]} 22. Be1 {[%emt 0:06:12]} Qb7 {[%emt 0:00:52]} 23. a4 {[%emt 0:05:29]} Nfe7 {[%emt 0:00:27]} 24. Nd2 {[%emt 0:03:42]} Bxd2 {[%emt 0:05:16]} 25. Bxd2 {[%emt 0:00:17]} Rc8 {[%emt 0:00:33]} 26. Bg5 {[%emt 0:01:40]} Kd7 {[%emt 0:03:44]} 27. Rd3 {[%emt 0:08:15]} Nf5 {[%emt 0:04:38]} 28. Rf3 {[%emt 0:00:42]} Rh7 {[%emt 0:01:19]} 29. Rd2 {[%emt 0:01:17]} Rc7 {[%emt 0:02:37]} 30. Qc4 {[%emt 0:04:13]} h4 {[%emt 0:02:04]} 31. Rd1 {[%emt 0:01:23]} Rh5 {[%emt 0:01:36]} 32. Bc1 {[%emt 0:00:29]} a5 {[%emt 0:03:55]} 33. Rb3 {[%emt 0:01:06]} Rh8 {[%emt 0:01:27]} 34. Bd2 {[%emt 0:00:44]} Ra8 {[%emt 0:00:40]} 35. Bg5 {[%emt 0:00:53]} Qa6 {[%emt 0:02:00]} 36. Qc1 {[%emt 0:02:11]} Qe2 {[%emt 0:08:08]} 37. Bf3 {[%emt 0:00:14]} Qa6 {[%emt 0:00:18]} 38. Rd2 {[%emt 0:02:19]} Qb7 {[%emt 0:05:38]} 39. Be2 {[%emt 0:01:17]} Nb4 {[%emt 0:00:56]} 40. Rf3 {[%emt 0:03:30]} Re8 {[%emt 0:01:23]} 41. g4 {[%emt 0:41:12]} hxg3 {[%emt 0:30:13]} 42. fxg3 {[%emt 0:00:00]} Kc8 {[%emt 0:01:16]} 43. g4 {[%emt 0:00:00]} Ng7 {[%emt 0:00:24]} 44. Qf1 {[%emt 0:00:00]} Rh8 {[%emt 0:00:53]} 45. Bc4 {[%emt 0:00:00]} Kb8 {[%emt 0:01:22]} 46. Rdf2 {[%emt 0:00:00]} b5 {[%emt 0:00:56]} 47. Bb3 {[%emt 0:00:00]} bxa4 {[%emt 0:02:15]} 48. Bxa4 {[%emt 0:00:00]} Qb6 {[%emt 0:00:37]} 49. Rd2 {[%emt 0:00:00]} Qa7 {[%emt 0:00:20]} 50. Kg2 {[%emt 0:00:00]} Rhc8 {[%emt 0:01:00]} 51. Rc3 {[%emt 0:00:00]} Ne8 {[%emt 0:01:36]} 52. Rc5 {[%emt 0:00:00]} Rd7 {[%emt 0:00:32]} 53. Qc4 {[%emt 0:01:14]} Rd5 {[%emt 0:01:13]} 54. Bd1 {[%emt 0:01:56]} Rxc5 {[%emt 0:00:42]} 55. dxc5 {[%emt 0:00:06]} Nd5 {[%emt 0:00:04]} 56. Rf2 {[%emt 0:01:46]} Rc7 {[%emt 0:00:30]} 57. Ba4 {[%emt 0:00:12]} Qb7 {[%emt 0:00:26]} 58. Kg3 {[%emt 0:00:47]} Rd7 {[%emt 0:00:29]} 59. Bd2 {[%emt 0:00:42]} Nb4 {[%emt 0:00:37]} 60. Bd1 {[%emt 0:00:48]} Nd3 {[%emt 0:00:42]} 61. Rf3 {[%emt 0:00:50]} Nxb2 {[%emt 0:05:13]} 62. Qc2 {[%emt 0:00:33]} a4 {[%emt 0:00:19]} 63. Be2 {[%emt 0:00:40]} Nc7 {[%emt 0:01:31]} 64. Bc1 {[%emt 0:00:32]} Qb4 {[%emt 0:01:17]} 65. Kg2 {[%emt 0:00:49]} Nb5 {[%emt 0:00:16]} 66. Bxb5 {[%emt 0:00:19]} cxb5 {[%emt 0:01:19]} 67. c6 {[%emt 0:00:01]} Rd5 {[%emt 0:01:45]} 68. Qxb2 {[%emt 0:00:33]} Qe4 {[%emt 0:00:50]} 69. Kg3 {[%emt 0:00:54]} Kc7 {[%emt 0:00:47]} 70. Be3 {[%emt 0:00:32]} Kxc6 {[%emt 0:00:34]} 71. Qc3+ {[%emt 0:00:16]} Qc4 {[%emt 0:00:04]} 72. Qa5 {[%emt 0:00:18]} Rd7 {[%emt 0:01:24]} 73. Rf4 {[%emt 0:00:44]} Qd3 {[%emt 0:02:35]} 74. Qb6+ {[%emt 0:01:58]} 1-0

[Event "2nd Serbian League-Vojvodina 2023"]
[Site "Novi Sad"]
[Date "2023.11.04"]
[Round "4.18"]
[White "Bojkovic, Slobodan"]
[Black "Kecskemeti, Arpad"]
[Result "0-1"]
[ECO "B94"]
[WhiteElo "2031"]
[BlackElo "2185"]
[Annotator "ChessBase"]
[PlyCount "119"]
[EventDate "2023.10.22"]
[EventType "team-tourn"]
[EventCountry "SRB"]
[SourceTitle "playchess.com"]
[Source "ChessBase"]
[SourceQuality "1"]
[TimeControl "40/5400+30:1800+30"]

1. e4 {[%emt 0:00:07]} c5 {[%emt 0:00:04]} 2. Nf3 {[%emt 0:00:09]} d6 {[%emt 0:00:04]} 3. d4 {[%emt 0:00:47]} cxd4 {[%emt 0:00:04]} 4. Nxd4 {[%emt 0:00:09]} Nf6 {[%emt 0:00:04]} 5. Nc3 {[%emt 0:00:15]} a6 {[%emt 0:00:04]} 6. Bg5 {[%emt 0:00:10]} Nbd7 {[%emt 0:00:21]} 7. a4 {[%emt 0:06:15]} Qc7 {[%emt 0:00:56]} 8. Qd2 {[%emt 0:03:33]} h6 {[%emt 0:02:20]} 9. Be3 {[%emt 0:00:25]} e6 {[%emt 0:10:59]} 10. Be2 {[%emt 0:01:14]} Ne5 {[%emt 0:02:18]} 11. f3 {[%emt 0:05:15]} Bd7 {[%emt 0:05:15]} 12. a5 {[%emt 0:05:48]} Nc4 {[%emt 0:01:20]} 13. Bxc4 {[%emt 0:00:21]} Qxc4 {[%emt 0:00:05]} 14. b3 {[%emt 0:01:42]} Qc7 {[%emt 0:02:18]} 15. Na4 {[%emt 0:04:19]} Bxa4 {[%emt 0:01:28]} 16. Rxa4 {[%emt 0:00:05]} d5 {[%emt 0:00:30]} 17. Ne2 {[%emt 0:01:55]} dxe4 {[%emt 0:12:03]} 18. Rc4 {[%emt 0:01:48]} Qe5 {[%emt 0:04:06]} 19. Bd4 {[%emt 0:01:21]} Qd5 {[%emt 0:18:05]} 20. Bxf6 {[%emt 0:01:49]} Qxd2+ {[%emt 0:01:09]} 21. Kxd2 {[%emt 0:02:10]} exf3 {[%emt 0:01:46]} 22. gxf3 {[%emt 0:02:46]} gxf6 {[%emt 0:00:30]} 23. Ke3 {[%emt 0:01:38]} Bd6 {[%emt 0:01:19]} 24. f4 {[%emt 0:01:09]} Ke7 {[%emt 0:01:12]} 25. b4 {[%emt 0:01:56]} Rac8 {[%emt 0:07:05]} 26. Rxc8 {[%emt 0:56:24]} Rxc8 {[%emt 0:28:05]} 27. c3 {[%emt 0:00:00]} f5 {[%emt 0:00:00]} 28. Rf1 {[%emt 0:00:00]} Kf6 {[%emt 0:00:00]} 29. Rf3 {[%emt 0:00:00]} e5 {[%emt 0:00:00]} 30. fxe5+ {[%emt 0:00:00]} Bxe5 {[%emt 0:00:00]} 31. Kd3 {[%emt 0:00:00]} Kg5 {[%emt 0:00:00]} 32. h3 {[%emt 0:00:00]} Rd8+ {[%emt 0:00:00]} 33. Nd4 {[%emt 0:00:00]} f4 {[%emt 0:00:00]} 34. Ke4 {[%emt 0:00:00]} Bxd4 {[%emt 0:00:00]} 35. cxd4 {[%emt 0:00:00]} Re8+ {[%emt 0:00:00]} 36. Kd3 {[%emt 0:00:00]} Kf5 {[%emt 0:00:00]} 37. Rf1 {[%emt 0:00:00]} Re3+ {[%emt 0:00:00]} 38. Kc4 {[%emt 0:00:00]} f3 {[%emt 0:00:00]} 39. d5 {[%emt 0:00:00]} Kf4 {[%emt 0:00:00]} 40. d6 {[%emt 0:00:00]} Re8 {[%emt 0:00:00]} 41. Rd1 {[%emt 0:22:20]} f2 {[%emt 0:24:45]} 42. d7 {[%emt 0:00:22]} Rd8 {[%emt 0:00:30]} 43. Kc5 {[%emt 0:00:02]} Ke3 {[%emt 0:01:01]} 44. Kd6 {[%emt 0:00:25]} Ke2 {[%emt 0:00:33]} 45. Ra1 {[%emt 0:01:09]} f1=Q {[%emt 0:03:05]} 46. Rxf1 {[%emt 0:00:14]} Kxf1 {[%emt 0:00:04]} 47. Ke7 {[%emt 0:01:16]} Rxd7+ {[%emt 0:00:25]} 48. Kxd7 {[%emt 0:00:09]} f5 {[%emt 0:00:02]} 49. Kc7 {[%emt 0:00:18]} f4 {[%emt 0:00:07]} 50. Kxb7 {[%emt 0:00:13]} f3 {[%emt 0:00:04]} 51. Kxa6 {[%emt 0:04:34]} f2 {[%emt 0:00:20]} 52. b5 {[%emt 0:00:04]} Kg2 {[%emt 0:01:43]} 53. b6 {[%emt 0:00:12]} f1=Q+ {[%emt 0:00:05]} 54. Ka7 {[%emt 0:00:16]} Qf7+ {[%emt 0:07:32]} 55. b7 {[%emt 0:00:14]} Qf2+ {[%emt 0:00:21]} 56. Kb8 {[%emt 0:03:05]} Qf8+ {[%emt 0:01:44]} 57. Kc7 {[%emt 0:01:32]} Qc5+ {[%emt 0:00:10]} 58. Kd7 {[%emt 0:00:49]} Qb5+ {[%emt 0:00:43]} 59. Kc8 {[%emt 0:09:16]} Qa6 {[%emt 0:00:30]} 60. Kb8 {[%emt 0:00:30]} 0-1

[Event "2nd Serbian League-Vojvodina 2023"]
[Site "Novi Sad"]
[Date "2023.11.04"]
[Round "4.19"]
[White "Samani, Yamac"]
[Black "Skvortsov, Andrei"]
[Result "0-1"]
[ECO "C00"]
[WhiteElo "2349"]
[BlackElo "2294"]
[Annotator "ChessBase"]
[PlyCount "94"]
[EventDate "2023.10.22"]
[EventType "team-tourn"]
[EventCountry "SRB"]
[SourceTitle "playchess.com"]
[Source "ChessBase"]
[SourceQuality "1"]
[TimeControl "40/5400+30:1800+30"]

1. e4 {[%emt 1:31:00]} e6 {[%emt 1:31:00]} 2. Qe2 {[%emt 0:00:30]} c5 {[%emt 0:00:30]} 3. Nf3 {[%emt 0:00:30]} Nc6 {[%emt 0:00:30]} 4. g3 {[%emt 0:00:30]} e5 {[%emt 0:00:30]} 5. Bg2 {[%emt 0:00:30]} Nf6 {[%emt 0:00:30]} 6. O-O {[%emt 0:00:30]} Be7 {[%emt 0:00:30]} 7. d3 {[%emt 0:00:30]} h6 {[%emt 0:00:30]} 8. c3 {[%emt 0:00:30]} O-O {[%emt 0:00:30]} 9. Na3 {[%emt 0:00:30]} Re8 {[%emt 0:00:30]} 10. Nc4 {[%emt 0:00:30]} Bf8 {[%emt 0:00:30]} 11. Ne3 {[%emt 0:00:30]} d5 {[%emt 0:00:30]} 12. Nh4 {[%emt 0:00:30]} Be6 {[%emt 0:00:30]} 13. Qf3 {[%emt 0:00:30]} d4 {[%emt 0:00:30]} 14. Nd5 {[%emt 0:00:30]} Nh7 {[%emt 0:00:30]} 15. Nf5 {[%emt 0:00:30]} dxc3 {[%emt 0:00:30]} 16. bxc3 {[%emt 0:00:30]} Ng5 {[%emt 0:00:30]} 17. Qh5 {[%emt 0:00:30]} f6 {[%emt 0:00:30]} 18. h4 {[%emt 0:00:30]} Bf7 {[%emt 0:00:30]} 19. Qe2 {[%emt 0:00:30]} Ne6 {[%emt 0:00:30]} 20. Rb1 {[%emt 0:00:30]} Rb8 {[%emt 0:00:30]} 21. Qf3 {[%emt 0:00:30]} Kh8 {[%emt 0:00:30]} 22. g4 {[%emt 0:00:30]} Bg8 {[%emt 0:00:30]} 23. Qg3 {[%emt 0:00:30]} Ne7 {[%emt 0:00:30]} 24. Nfxe7 {[%emt 0:00:30]} Bxe7 {[%emt 0:00:30]} 25. Bh3 {[%emt 0:00:30]} g5 {[%emt 0:00:30]} 26. Rd1 {[%emt 0:00:30]} Bd6 {[%emt 0:00:30]} 27. Qf3 {[%emt 0:00:30]} Nf4 {[%emt 0:00:30]} 28. Nxf4 {[%emt 0:00:30]} exf4 {[%emt 0:00:30]} 29. d4 {[%emt 0:00:30]} Qa5 {[%emt 0:00:30]} 30. Bb2 {[%emt 0:00:30]} Bh7 {[%emt 0:00:30]} 31. Re1 {[%emt 0:00:30]} Qxa2 {[%emt 0:00:30]} 32. Qd3 {[%emt 0:00:30]} c4 {[%emt 0:00:30]} 33. Qc2 {[%emt 0:00:30]} f3 {[%emt 0:00:30]} 34. Ra1 {[%emt 0:00:30]} Qb3 {[%emt 0:00:30]} 35. Qxb3 {[%emt 0:00:30]} cxb3 {[%emt 0:00:30]} 36. e5 {[%emt 0:00:30]} fxe5 {[%emt 0:00:30]} 37. dxe5 {[%emt 0:00:30]} Bc5 {[%emt 0:00:30]} 38. e6 {[%emt 0:00:30]} Rbd8 {[%emt 0:00:30]} 39. c4+ {[%emt 0:00:30]} Kg8 {[%emt 0:00:30]} 40. Rad1 {[%emt 0:00:30]} Rxd1 {[%emt 0:00:30]} 41. Rxd1 Rxe6 {[%emt 0:30:30]} 42. Rd8+ {[%emt 0:31:00]} Kf7 {[%emt 0:00:30]} 43. Bf1 {[%emt 0:00:30]} gxh4 {[%emt 0:00:30]} 44. Rd5 {[%emt 0:00:30]} b6 {[%emt 0:00:30]} 45. Bc3 {[%emt 0:00:30]} Be4 {[%emt 0:00:30]} 46. Rd7+ {[%emt 0:00:30]} Re7 {[%emt 0:00:30]} 47. Rd8 {[%emt 0:00:30]} a5 {[%emt 0:00:30]} 0-1

[Event "2nd Serbian League-Vojvodina 2023"]
[Site "Novi Sad"]
[Date "2023.11.04"]
[Round "4.20"]
[White "Levitan, Caleb Levi"]
[Black "Alimpic, Aleksa"]
[Result "0-1"]
[ECO "B13"]
[WhiteElo "2219"]
[BlackElo "2290"]
[Annotator "ChessBase"]
[PlyCount "112"]
[EventDate "2023.10.22"]
[EventType "team-tourn"]
[EventCountry "SRB"]
[SourceTitle "playchess.com"]
[Source "ChessBase"]
[SourceQuality "1"]
[TimeControl "40/5400+30:1800+30"]

1. e4 {[%emt 1:31:00]} c6 {[%emt 0:00:00]} 2. d4 d5 {[%emt 1:31:30]} 3. exd5 {[%emt 0:01:00]} cxd5 {[%emt 0:00:30]} 4. Bd3 {[%emt 0:00:30]} Nc6 {[%emt 0:00:00]} 5. c3 {[%emt 0:00:30]} Nf6 {[%emt 0:01:00]} 6. Bf4 {[%emt 0:00:30]} Bg4 {[%emt 0:00:30]} 7. Qb3 {[%emt 0:00:30]} Qd7 {[%emt 0:00:30]} 8. Nd2 {[%emt 0:00:30]} e6 {[%emt 0:00:30]} 9. Ngf3 {[%emt 0:00:30]} Bd6 {[%emt 0:00:30]} 10. Bg3 {[%emt 0:00:30]} Bxf3 {[%emt 0:00:30]} 11. Nxf3 {[%emt 0:00:30]} O-O {[%emt 0:00:30]} 12. O-O {[%emt 0:00:00]} Bxg3 13. hxg3 {[%emt 0:01:00]} Qc7 {[%emt 0:01:00]} 14. Rfe1 {[%emt 0:00:30]} Rab8 {[%emt 0:00:30]} 15. Qc2 {[%emt 0:00:30]} g6 {[%emt 0:00:30]} 16. a4 {[%emt 0:00:30]} a6 {[%emt 0:00:30]} 17. Qe2 {[%emt 0:00:30]} Rfe8 {[%emt 0:00:00]} 18. Rac1 {[%emt 0:00:00]} Nd7 {[%emt 0:01:00]} 19. Qd2 {[%emt 0:01:00]} Kg7 {[%emt 0:00:30]} 20. c4 {[%emt 0:00:00]} dxc4 {[%emt 0:00:00]} 21. Bxc4 {[%emt 0:01:00]} Nf6 {[%emt 0:01:00]} 22. Ne5 {[%emt 0:00:30]} Qa5 {[%emt 0:00:30]} 23. Qxa5 {[%emt 0:00:30]} Nxa5 {[%emt 0:00:30]} 24. Ba2 {[%emt 0:00:00]} Nc6 25. Nxc6 {[%emt 0:01:00]} bxc6 {[%emt 0:01:00]} 26. Re2 {[%emt 0:00:30]} Rb4 {[%emt 0:00:30]} 27. Rc4 {[%emt 0:00:30]} Reb8 {[%emt 0:00:30]} 28. b3 {[%emt 0:00:30]} Rxc4 {[%emt 0:00:00]} 29. bxc4 {[%emt 0:00:30]} Rb4 {[%emt 0:01:00]} 30. a5 {[%emt 0:00:30]} Ra4 {[%emt 0:00:30]} 31. f3 {[%emt 0:00:30]} Rxa5 {[%emt 0:00:30]} 32. Rb2 {[%emt 0:00:30]} Ne8 {[%emt 0:00:30]} 33. c5 {[%emt 0:00:30]} Rb5 {[%emt 0:00:30]} 34. Rd2 {[%emt 0:00:30]} Rb4 {[%emt 0:00:30]} 35. Kf2 {[%emt 0:00:30]} Nc7 {[%emt 0:00:30]} 36. Ke3 {[%emt 0:00:00]} Nb5 37. g4 {[%emt 0:01:00]} a5 {[%emt 0:01:00]} 38. f4 {[%emt 0:00:30]} a4 {[%emt 0:00:30]} 39. f5 {[%emt 0:00:30]} Kf6 {[%emt 0:00:30]} 40. Rf2 {[%emt 0:00:30]} Ke7 {[%emt 0:00:30]} 41. fxe6 {[%emt 0:30:30]} fxe6 {[%emt 0:30:30]} 42. Rd2 {[%emt 0:00:30]} a3 {[%emt 0:00:30]} 43. g5 {[%emt 0:00:30]} Rb2 {[%emt 0:00:30]} 44. Kd3 {[%emt 0:00:30]} Rxd2+ {[%emt 0:00:00]} 45. Kxd2 {[%emt 0:00:30]} Nxd4 {[%emt 0:01:00]} 46. Kc3 {[%emt 0:00:30]} e5 {[%emt 0:00:30]} 47. Bb1 {[%emt 0:00:30]} Ne6 {[%emt 0:00:30]} 48. Kb4 {[%emt 0:00:30]} e4 {[%emt 0:00:00]} 49. Kc4 Nxc5 {[%emt 0:01:00]} 50. Kd4 {[%emt 0:01:00]} Kd6 {[%emt 0:00:30]} 51. Ba2 {[%emt 0:00:00]} Nd3 {[%emt 0:00:30]} 52. Kc3 {[%emt 0:01:00]} Nc1 {[%emt 0:00:30]} 53. Bc4 {[%emt 0:00:30]} Kc5 {[%emt 0:00:00]} 54. Bg8 {[%emt 0:00:30]} e3 {[%emt 0:01:00]} 55. Bxh7 {[%emt 0:00:30]} e2 {[%emt 0:00:30]} 56. Kd2 {[%emt 0:00:30]} a2 {[%emt 0:00:30]} 0-1